bitfinex-derivatives/quotes_BTCF0:USTF0_20241221
["timestamp","ask_amount","ask_price","bid_price","bid_amount"]
[1734767279171,0.009,99461.0,99455.0,0.03601843]
[1734767279370,0.050293,99458.0,99456.0,0.03601843]
[1734767279675,0.050293,99458.0,99457.0,0.03601843]
[1734767279868,0.050293,99458.0,99440.0,0.050302]
[1734767280065,0.012,99461.0,99456.0,0.050294]
[1734767280264,0.012,99461.0,99449.0,0.03599282]
[1734767280265,0.01,99461.0,99459.0,0.050292]
[1734767280470,0.01,99461.0,99460.0,0.03599282]
[1734767280872,0.001,99461.0,99460.0,0.03599282]
[1734767281082,0.36132001,99467.0,99466.0,0.050289]
[1734767281372,0.3608,99467.0,99466.0,0.08632182]
[1734767282079,0.3698,99467.0,99466.0,0.08632182]
[1734767282670,0.3768,99467.0,99466.0,0.08632182]
[1734767284182,0.3678,99467.0,99466.0,0.08632182]
[1734767284393,0.3768,99467.0,99466.0,0.08632182]
[1734767284572,0.3768,99467.0,99466.0,0.08732182]
[1734767285883,0.3768,99467.0,99466.0,0.03703282]
[1734767287783,0.3678,99467.0,99466.0,0.03703282]
[1734767287981,0.427085,99467.0,99466.0,0.00104]
[1734767288482,0.428085,99467.0,99466.0,4e-05]
[1734767288793,0.39797355,99467.0,99449.0,0.03596112]
[1734767288972,0.3778,99467.0,99449.0,0.03596112]
[1734767289280,0.050287,99463.0,99449.0,0.03596112]
[1734767291285,0.059287,99463.0,99449.0,0.03596112]
[1734767291683,0.050287,99463.0,99449.0,0.03596112]
[1734767291878,0.059287,99463.0,99449.0,0.03596112]
[1734767292184,0.013,99463.0,99450.0,0.09691195]
[1734767292385,0.013,99463.0,99452.0,0.050293]
[1734767292979,0.013,99463.0,99453.0,0.03594537]
[1734767293379,0.013,99463.0,99448.0,0.3608]
[1734767293686,0.411089,99459.0,99442.0,0.050298]
[1734767293886,0.3608,99448.0,99443.0,0.03594966]
[1734767294681,0.3608,99448.0,99432.0,0.05037989]
[1734767294682,0.411095,99448.0,99444.0,0.03594966]
[1734767294887,0.2101,99447.0,99432.0,7.689e-05]
[1734767295086,0.0503,99438.0,99432.0,7.689e-05]
[1734767295280,8e-05,99433.0,99432.0,7.689e-05]
[1734767295483,0.36088,99433.0,99432.0,7.689e-05]
[1734767295990,0.72168,99433.0,99432.0,7.689e-05]
[1734767296185,0.72168,99433.0,99422.0,0.00150865]
[1734767296489,0.36088,99423.0,99422.0,0.00150865]
[1734767296879,0.57058,99423.0,99422.0,0.00150865]
[1734767297082,0.57058,99423.0,99413.0,0.35341511]
[1734767297083,0.050312,99414.0,99413.0,0.35341511]
[1734767297390,0.411192,99414.0,99413.0,0.35341511]
[1734767297687,0.411192,99414.0,99400.0,1.1006]
[1734767297688,0.050317,99405.0,99400.0,1.1006]
[1734767297893,0.3608,99401.0,99400.0,1.1]
[1734767298195,0.36088,99401.0,99400.0,1.1]
[1734767298797,0.009,99405.0,99404.0,0.050317]
[1734767298985,0.01252624,99457.0,99404.0,0.050317]
[1734767298986,0.12010037,99427.0,99413.0,0.050312]
[1734767299178,0.12010037,99427.0,99414.0,0.03583991]
[1734767299494,0.12010037,99427.0,99422.0,1.36]
[1734767299883,0.12010037,99427.0,99422.0,1.771107]
[1734767300084,0.12010037,99427.0,99422.0,1.36]
[1734767300290,0.09691195,99432.0,99422.0,1.36]
[1734767300291,0.3608,99425.0,99422.0,1.36]
[1734767300789,0.3608,99425.0,99415.0,0.050311]
[1734767300983,0.3608,99425.0,99410.0,0.050314]
[1734767301178,8e-05,99416.0,99411.0,1.39583623]
[1734767301384,8e-05,99416.0,99411.0,1.36]
[1734767301891,8e-05,99416.0,99415.0,0.050311]
[1734767302493,0.00208,99416.0,99415.0,0.050311]
[1734767302790,0.00208,99416.0,99411.0,0.00064]
[1734767302993,0.00208,99416.0,99404.0,4e-05]
[1734767302994,0.3608,99412.0,99404.0,4e-05]
[1734767303292,8e-05,99405.0,99404.0,4e-05]
[1734767303495,0.36088,99405.0,99404.0,4e-05]
[1734767303793,0.00060001,99412.0,99411.0,0.050313]
[1734767303990,0.23040037,99437.0,99436.0,0.050301]
[1734767304383,0.23040037,99437.0,99436.0,4e-05]
[1734767304695,0.59120037,99437.0,99436.0,4e-05]
[1734767305092,0.4711,99437.0,99436.0,0.00304]
[1734767305799,0.4711,99437.0,99436.0,0.00404]
[1734767307595,0.49121414,99437.0,99402.0,0.050317]
[1734767307789,0.3608,99408.0,99402.0,0.050317]
[1734767307990,8e-05,99405.0,99402.0,0.050317]
[1734767308494,8e-05,99405.0,99400.0,1.10064]
[1734767308701,8e-05,99405.0,99403.0,0.050317]
[1734767308997,0.03215184,99448.0,99416.0,0.050311]
[1734767309191,0.1087,99443.0,99436.0,0.050301]
[1734767309389,0.1087,99443.0,99419.0,0.3608]
[1734767309589,0.22880037,99443.0,99434.0,0.050301]
[1734767309994,0.3608,99435.0,99419.0,1.7208]
[1734767310391,0.3608,99435.0,99422.0,0.050308]
[1734767310804,0.3608,99426.0,99422.0,0.050308]
[1734767311203,0.3608,99426.0,99415.0,0.050311]
[1734767311494,8e-05,99416.0,99415.0,0.050311]
[1734767311697,0.36088,99416.0,99408.0,0.266915]
[1734767311890,0.36088,99416.0,99409.0,0.050314]
[1734767312095,0.3608,99416.0,99409.0,0.050314]
[1734767312291,0.050314,99411.0,99404.0,4e-05]
[1734767312492,0.3608,99408.0,99404.0,4e-05]
[1734767312802,0.050316,99406.0,99404.0,4e-05]
[1734767313690,0.36132001,99408.0,99404.0,4e-05]
[1734767313691,0.3608,99407.0,99404.0,4e-05]
[1734767314000,0.1075,99415.0,99404.0,4e-05]
[1734767314406,0.007,99406.0,99404.0,0.00104]
[1734767314596,0.014,99406.0,99404.0,0.051357]
[1734767314792,0.007,99406.0,99404.0,0.051357]
[1734767315189,0.007,99407.0,99404.0,0.051357]
[1734767315399,0.007,99407.0,99406.0,0.050316]
[1734767315703,0.007,99407.0,99406.0,4e-05]
[1734767316295,0.3608,99408.0,99406.0,4e-05]
[1734767316497,0.050315,99407.0,99406.0,4e-05]
[1734767316701,0.050316,99405.0,99404.0,4e-05]
[1734767317006,0.411196,99405.0,99404.0,4e-05]
[1734767317201,0.66088,99405.0,99381.0,0.00150926]
[1734767317505,8e-05,99382.0,99381.0,0.00150926]
[1734767317690,0.36088,99382.0,99381.0,0.00150926]
[1734767317894,0.411208,99382.0,99381.0,0.00150926]
[1734767318700,0.37157363,99382.0,99372.0,0.29436519]
[1734767318909,0.411133,99373.0,99372.0,0.29436519]
[1734767319409,0.050333,99372.0,99352.0,0.050343]
[1734767319597,0.3608,99363.0,99352.0,0.050343]
[1734767319808,0.3608,99363.0,99339.0,0.0015099]
[1734767319809,0.36088,99363.0,99339.0,0.0015099]
[1734767319995,0.3608,99356.0,99339.0,0.0015099]
[1734767320195,0.7216,99340.0,99339.0,0.0015099]
[1734767320506,0.72168,99340.0,99339.0,0.0015099]
[1734767321013,0.72168,99340.0,99323.0,0.1095]
[1734767321214,0.3608,99332.0,99323.0,0.1095]
[1734767321508,0.050357,99325.0,99308.0,0.050365]
[1734767321702,0.3608,99309.0,99308.0,0.050365]
[1734767321898,0.36088,99309.0,99301.0,0.40442519]
[1734767322103,0.36088,99309.0,99302.0,0.050369]
[1734767322311,0.3608,99309.0,99302.0,0.050369]
[1734767322505,0.3608,99309.0,99300.0,0.1]
[1734767322711,0.3608,99301.0,99300.0,0.1]
[1734767323213,0.3608,99301.0,99300.0,0.15037]
[1734767323906,0.3608,99301.0,99300.0,0.1]
[1734767324499,0.3698,99301.0,99300.0,0.1]
[1734767324898,0.3758,99301.0,99300.0,0.1]
[1734767327020,0.3758,99301.0,99300.0,1.46]
[1734767327315,0.3758,99301.0,99290.0,0.05044623]
[1734767327517,0.3608,99291.0,99290.0,7.223e-05]
[1734767327709,0.36088,99291.0,99290.0,7.223e-05]
[1734767328810,0.36088,99291.0,99290.0,0.35044723]
[1734767329010,0.004,99301.0,99291.0,0.050374]
[1734767329213,0.004,99301.0,99291.0,0.1111]
[1734767329416,0.004,99301.0,99300.0,4e-05]
[1734767329808,0.36140001,99302.0,99300.0,4e-05]
[1734767330004,0.3608,99302.0,99300.0,0.050409]
[1734767330209,0.3608,99302.0,99301.0,4e-05]
[1734767330819,0.00060001,99310.0,99302.0,0.050369]
[1734767331013,0.00151105,99323.0,99302.0,0.050369]
[1734767331014,0.3608,99303.0,99302.0,0.050369]
[1734767331918,0.3608,99303.0,99291.0,0.161474]
[1734767332219,8e-05,99292.0,99291.0,0.161474]
[1734767333325,0.00808,99292.0,99291.0,0.161474]
[1734767333626,0.3668,99303.0,99302.0,0.050369]
[1734767334121,0.36140001,99315.0,99314.0,0.050362]
[1734767334309,0.36144,99324.0,99322.0,0.050358]
[1734767334619,0.3608,99335.0,99334.0,0.050352]
[1734767335017,0.3608,99335.0,99334.0,0.050392]
[1734767335218,0.3608,99335.0,99334.0,4e-05]
[1734767335912,0.3618,99335.0,99334.0,0.00504]
[1734767336717,0.3618,99335.0,99334.0,0.00604]
[1734767337820,0.3618,99335.0,99334.0,0.11524]
[1734767338417,0.3618,99335.0,99334.0,0.00604]
[1734767339619,0.37238286,99335.0,99334.0,0.00604]
[1734767340125,0.37238285,99335.0,99334.0,0.00604]
[1734767340417,0.38181941,99335.0,99334.0,0.00604]
[1734767343224,0.38181941,99335.0,99321.0,0.050359]
[1734767343415,0.3608,99322.0,99321.0,0.050359]
[1734767343615,0.36088,99322.0,99321.0,0.050359]
[1734767344329,0.38094236,99322.0,99321.0,0.050359]
[1734767344524,0.36188,99322.0,99321.0,0.060359]
[1734767345212,0.37247336,99322.0,99321.0,0.060359]
[1734767345414,0.38198036,99322.0,99321.0,0.060359]
[1734767345926,0.38198036,99322.0,99321.0,0.063359]
[1734767347025,0.39721542,99322.0,99321.0,0.013]
[1734767348224,0.41386802,99322.0,99321.0,0.013]
[1734767348423,0.41890187,99322.0,99321.0,0.013]
[1734767349019,0.14852833,99331.0,99321.0,0.6738]
[1734767349217,0.00056001,99352.0,99330.0,0.3608]
[1734767349524,0.2336939,99349.0,99348.0,0.050345]
[1734767349923,0.2336939,99349.0,99348.0,0.050385]
[1734767351220,0.0015104,99364.0,99363.0,0.050338]
[1734767351417,0.1058,99379.0,99378.0,0.05033]
[1734767351730,0.3608,99382.0,99378.0,0.05033]
[1734767351731,0.36136001,99382.0,99378.0,4e-05]
[1734767351928,0.3608,99382.0,99378.0,4e-05]
[1734767352127,0.3608,99382.0,99381.0,4e-05]
[1734767352630,0.19193638,99394.0,99393.0,0.050322]
[1734767352823,0.00056001,99403.0,99399.0,0.050319]
[1734767353023,0.1119,99410.0,99399.0,0.050319]
[1734767353218,0.1119,99410.0,99399.0,0.050359]
[1734767354730,0.1119,99410.0,99399.0,0.051359]
[1734767354934,0.103,99400.0,99399.0,0.051359]
[1734767355137,0.109,99400.0,99399.0,0.052359]
[1734767355527,0.109,99400.0,99399.0,0.00204]
[1734767355727,0.103,99400.0,99399.0,0.00104]
[1734767356029,0.103,99400.0,99373.0,0.3608]
[1734767356030,0.050322,99394.0,99362.0,0.3608]
[1734767356234,0.3608,99387.0,99370.0,0.050339]
[1734767356535,8e-05,99372.0,99370.0,0.050339]
[1734767357031,0.050339,99370.0,99359.0,0.17662989]
[1734767357223,0.3608,99368.0,99359.0,0.17662989]
[1734767357424,8e-05,99360.0,99359.0,0.050345]
[1734767357626,0.36088,99360.0,99359.0,0.050345]
[1734767357832,0.36088,99360.0,99343.0,0.00150983]
[1734767358240,8e-05,99344.0,99343.0,0.05186283]
[1734767359735,0.00708,99344.0,99343.0,0.05286283]
[1734767360133,0.36788,99344.0,99343.0,0.05286283]
[1734767360634,0.37688,99344.0,99343.0,0.05386283]
[1734767362524,0.01608,99344.0,99343.0,0.05386283]
[1734767363633,0.37688,99344.0,99343.0,0.05386283]
[1734767364032,0.3608,99368.0,99343.0,0.35386283]
[1734767364339,0.3608,99368.0,99366.0,0.050341]
[1734767364535,0.3608,99368.0,99367.0,4e-05]
[1734767365129,0.3638,99368.0,99367.0,4e-05]
[1734767365729,0.3658,99368.0,99367.0,4e-05]
[1734767366429,0.3708,99368.0,99367.0,0.00104]
[1734767366629,0.3688,99368.0,99367.0,0.00904]
[1734767367339,0.3708,99368.0,99367.0,0.00104]
[1734767367738,0.3678,99368.0,99367.0,0.00104]
[1734767367933,0.3718,99368.0,99367.0,0.00204]
[1734767368332,0.3648,99368.0,99367.0,0.00104]
[1734767368839,0.3648,99368.0,99367.0,0.051381]
[1734767369325,0.3708,99368.0,99367.0,0.051381]
[1734767369531,0.3708,99368.0,99343.0,0.36230983]
[1734767369835,0.3608,99360.0,99347.0,0.050351]
[1734767370242,0.3608,99348.0,99347.0,0.050351]
[1734767370639,0.3608,99348.0,99343.0,0.00150983]
[1734767370836,0.3608,99348.0,99347.0,0.001]
[1734767371438,0.3678,99348.0,99347.0,0.001]
[1734767372737,0.3708,99348.0,99347.0,0.001]
[1734767373133,0.3728,99348.0,99347.0,0.001]
[1734767374547,0.3758,99348.0,99347.0,0.002]
[1734767375641,0.3758,99348.0,99343.0,0.00150983]
[1734767375946,0.36088,99344.0,99334.0,0.050357]
[1734767376249,0.36088,99335.0,99334.0,0.050357]
[1734767376745,0.36088,99335.0,99330.0,4e-05]
[1734767377144,8e-05,99331.0,99330.0,4e-05]
[1734767377947,8e-05,99331.0,99330.0,0.00104]
[1734767378339,0.00208,99331.0,99330.0,0.00104]
[1734767379347,0.00908,99331.0,99330.0,0.00104]
[1734767379849,0.00208,99331.0,99330.0,4e-05]
[1734767380046,0.00908,99331.0,99330.0,0.00104]
[1734767381652,0.00708,99331.0,99330.0,0.00104]
[1734767381839,0.00908,99331.0,99330.0,0.00104]
[1734767382044,0.00908,99331.0,99319.0,0.050365]
[1734767382245,0.3608,99320.0,99319.0,0.050365]
[1734767382442,0.36088,99320.0,99319.0,0.050365]
[1734767383053,8e-05,99320.0,99319.0,0.050365]
[1734767383645,0.00908,99320.0,99319.0,0.050365]
[1734767384851,0.01508,99320.0,99319.0,0.050365]
[1734767387753,0.01508,99320.0,99308.0,0.17662989]
[1734767387948,0.3608,99313.0,99308.0,0.17662989]
[1734767388257,8e-05,99309.0,99308.0,0.22699989]
[1734767388559,8e-05,99309.0,99308.0,0.05037]
[1734767389155,8e-05,99309.0,99303.0,0.23393879]
[1734767389353,0.3608,99305.0,99303.0,0.23393879]
[1734767389552,8e-05,99304.0,99303.0,0.050372]
[1734767391353,0.00308,99304.0,99303.0,0.050372]
[1734767392655,0.01108,99304.0,99303.0,0.050372]
[1734767401663,0.01108,99304.0,99303.0,0.08631099]
[1734767401867,0.3608,99317.0,99316.0,0.050365]
[1734767402163,0.3608,99317.0,99316.0,0.050405]
[1734767402366,0.3608,99317.0,99316.0,0.0863607]
[1734767403059,0.3658,99317.0,99316.0,0.0863607]
[1734767403558,0.3748,99317.0,99316.0,0.0863607]
[1734767404263,0.09030001,99330.0,99329.0,0.050358]
[1734767404461,0.15012627,99346.0,99329.0,0.3967557]
[1734767404668,0.15012627,99346.0,99345.0,0.05035]
[1734767405256,0.15012627,99346.0,99345.0,0.08640204]
[1734767405961,0.15012627,99346.0,99345.0,0.05039]
[1734767406167,0.15012627,99346.0,99345.0,0.08942896]
[1734767406366,0.3513,99352.0,99349.0,0.050348]
[1734767407159,0.3513,99352.0,99351.0,4e-05]
[1734767407560,0.7121,99352.0,99351.0,4e-05]
[1734767407763,0.7121,99352.0,99343.0,0.17812185]
[1734767407764,0.74535839,99352.0,99343.0,0.17812185]
[1734767407964,0.3608,99344.0,99343.0,0.17812185]
[1734767408163,0.36088,99344.0,99343.0,0.17812185]
[1734767408663,0.36088,99344.0,99339.0,0.050351]
[1734767409071,8e-05,99340.0,99339.0,0.050351]
[1734767409963,8e-05,99340.0,99339.0,0.057351]
[1734767410469,8e-05,99340.0,99339.0,0.050351]
[1734767410660,0.00108,99340.0,99339.0,0.059351]
[1734767411171,0.00108,99340.0,99339.0,0.063351]
[1734767411568,0.00108,99340.0,99333.0,0.17812185]
[1734767411870,8e-05,99334.0,99333.0,0.22847585]
[1734767412070,8e-05,99334.0,99333.0,0.26478509]
[1734767412771,8e-05,99334.0,99333.0,0.27778509]
[1734767413271,0.00108,99334.0,99333.0,0.27778509]
[1734767414263,0.00208,99334.0,99333.0,0.24247585]
[1734767414681,0.00208,99334.0,99333.0,0.27877815]
[1734767416466,0.00208,99334.0,99333.0,0.1006563]
[1734767417872,0.00208,99334.0,99326.0,0.04610229]
[1734767418066,0.3608,99327.0,99317.0,0.29269173]
[1734767418269,0.36088,99327.0,99317.0,0.29269173]
[1734767418482,8e-05,99318.0,99317.0,0.29269173]
[1734767419593,8e-05,99318.0,99314.0,0.050364]
[1734767419894,0.00908,99318.0,99314.0,0.050364]
[1734767420785,0.01508,99318.0,99314.0,0.050364]
[1734767421494,0.01508,99318.0,99315.0,0.050363]
[1734767422386,0.01508,99318.0,99300.0,0.09734507]
[1734767422589,0.01508,99318.0,99316.0,0.050362]
[1734767422888,0.015,99318.0,99316.0,0.050362]
[1734767423186,0.006,99318.0,99317.0,0.03595727]
[1734767423390,0.015,99318.0,99316.0,0.050362]
[1734767423594,0.009,99318.0,99317.0,0.03595844]
[1734767423787,0.006,99318.0,99317.0,0.03595844]
[1734767423991,0.015,99318.0,99316.0,0.050362]
[1734767424491,8e-05,99317.0,99316.0,0.050362]
[1734767425793,0.00608,99317.0,99316.0,0.050362]
[1734767426593,0.01508,99317.0,99316.0,0.050362]
[1734767428296,0.01508,99317.0,99307.0,0.09734507]
[1734767428596,8e-05,99310.0,99309.0,0.05188031]
[1734767429286,0.36088,99310.0,99309.0,0.00151031]
[1734767430385,0.36988,99310.0,99309.0,0.00151031]
[1734767430795,0.50066682,99310.0,99309.0,0.00151031]
[1734767431000,0.50566682,99310.0,99309.0,0.00151031]
[1734767431498,0.61711775,99310.0,99309.0,0.00151031]
[1734767431696,0.050371,99307.0,99292.0,0.050378]
[1734767431990,0.3608,99299.0,99290.0,7.223e-05]
[1734767432481,0.1183,99298.0,99290.0,7.223e-05]
[1734767432687,0.3608,99291.0,99290.0,7.223e-05]
[1734767434299,0.3628,99291.0,99290.0,7.223e-05]
[1734767435187,0.3688,99291.0,99290.0,7.223e-05]
[1734767436593,0.3688,99291.0,99270.0,0.0015108]
[1734767436796,0.3608,99274.0,99270.0,0.0015108]
[1734767437002,8e-05,99271.0,99270.0,0.0015108]
[1734767437300,0.050469,99271.0,99270.0,0.0015108]
[1734767437591,0.050392,99267.0,99254.0,0.29269173]
[1734767437792,0.3608,99259.0,99254.0,0.29269173]
[1734767438193,0.7216,99259.0,99254.0,0.29269173]
[1734767438393,8e-05,99255.0,99254.0,0.29269173]
[1734767438601,8e-05,99255.0,99247.0,0.2478]
[1734767438897,0.36088,99248.0,99247.0,0.2478]
[1734767439894,0.36088,99248.0,99247.0,0.298201]
[1734767440097,0.36788,99248.0,99247.0,0.298201]
[1734767441287,0.36988,99248.0,99247.0,0.2478]
[1734767442997,0.36988,99248.0,99247.0,0.1241]
[1734767443298,0.36988,99248.0,99240.0,0.050404]
[1734767443501,9.602e-05,99247.0,99233.0,0.050408]
[1734767443806,9.602e-05,99247.0,99235.0,0.050407]
[1734767443807,0.3608,99239.0,99235.0,0.050407]
[1734767444103,0.3608,99239.0,99236.0,0.050406]
[1734767446394,0.3628,99239.0,99236.0,0.050406]
[1734767447504,0.3628,99239.0,99226.0,0.70163153]
[1734767447701,0.3628,99239.0,99226.0,0.70067153]
[1734767448799,0.3628,99239.0,99226.0,0.75108353]
[1734767448999,0.3648,99239.0,99228.0,0.050411]
[1734767449193,0.3648,99239.0,99226.0,0.70167153]
[1734767449403,0.3648,99239.0,99230.0,0.05041]
[1734767449595,0.3648,99239.0,99233.0,0.050409]
[1734767450002,0.3618,99239.0,99233.0,0.050409]
[1734767450207,0.3668,99239.0,99233.0,0.050409]
[1734767450603,0.3658,99239.0,99233.0,0.050409]
[1734767450807,0.3688,99239.0,99233.0,0.050409]
[1734767451811,0.3688,99239.0,99226.0,0.70159153]
[1734767451999,0.3638,99239.0,99226.0,0.70067153]
[1734767452194,0.3708,99239.0,99226.0,0.36231153]
[1734767452500,0.3608,99227.0,99226.0,0.00151153]
[1734767453703,0.3668,99227.0,99226.0,0.00151153]
[1734767453904,0.3758,99227.0,99226.0,0.00151153]
[1734767454404,0.3768,99227.0,99226.0,0.00151153]
[1734767454997,0.3768,99227.0,99219.0,0.050416]
[1734767455202,0.3768,99227.0,99220.0,0.050415]
[1734767455798,0.3768,99227.0,99210.0,0.09734507]
[1734767455998,0.3698,99227.0,99221.0,0.050415]
[1734767456598,0.3698,99227.0,99215.0,0.05051068]
[1734767456795,0.3608,99217.0,99215.0,0.05051068]
[1734767457006,8e-05,99216.0,99215.0,0.05051068]
[1734767457401,8e-05,99216.0,99215.0,9.268e-05]
[1734767457803,0.004,99217.0,99215.0,9.268e-05]
[1734767458107,0.004,99217.0,99216.0,0.050457]
[1734767459104,0.013,99217.0,99216.0,4e-05]
[1734767459412,0.004,99217.0,99216.0,4e-05]
[1734767459621,0.013,99217.0,99216.0,4e-05]
[1734767459806,0.009,99217.0,99216.0,4e-05]
[1734767460703,0.014,99217.0,99216.0,4e-05]
[1734767460904,0.014,99217.0,99215.0,0.04554968]
[1734767461206,4e-05,99216.0,99215.0,0.04554968]
[1734767462805,0.00904,99216.0,99208.0,0.3608]
[1734767463206,4e-05,99209.0,99208.0,0.411221]
[1734767464311,0.00304,99209.0,99201.0,0.1205]
[1734767464505,0.00304,99209.0,99203.0,0.050424]
[1734767464711,4e-05,99206.0,99203.0,0.050424]
[1734767465209,0.00016709,99206.0,99201.0,0.1205]
[1734767465412,0.3608,99202.0,99201.0,0.1205]
[1734767465617,0.36084,99202.0,99201.0,0.1205]
[1734767466813,0.36784,99202.0,99201.0,0.1205]
[1734767467314,0.37084,99202.0,99201.0,0.1205]
[1734767468713,0.01004,99202.0,99201.0,0.1205]
[1734767470518,0.01004,99202.0,99201.0,0.170925]
[1734767472208,0.01004,99202.0,99201.0,0.2067702]
[1734767472418,0.01004,99202.0,99201.0,0.5675702]
[1734767472814,0.1218,99243.0,99217.0,0.050417]
[1734767473009,0.1218,99243.0,99218.0,0.1241]
[1734767473214,0.1218,99243.0,99225.0,4e-05]
[1734767473410,0.17973649,99235.0,99234.0,0.050408]
[1734767473610,0.19861969,99235.0,99234.0,0.050408]
[1734767473814,0.1986813,99235.0,99234.0,0.050448]
[1734767474625,0.18878654,99235.0,99234.0,0.050448]
[1734767474815,0.00905005,99235.0,99234.0,0.050448]
[1734767475419,0.01005005,99235.0,99234.0,0.053448]
[1734767475813,6.161e-05,99235.0,99234.0,0.050448]
[1734767476022,0.00406161,99235.0,99234.0,0.050448]
[1734767476616,0.01006161,99235.0,99234.0,0.050448]
[1734767476920,0.17973649,99248.0,99247.0,0.050402]
[1734767477423,0.17973649,99248.0,99247.0,0.050442]
[1734767478116,0.36136001,99249.0,99247.0,0.050442]
[1734767478317,0.3608,99249.0,99247.0,0.050442]
[1734767478624,0.3608,99249.0,99248.0,4e-05]
[1734767479325,0.3698,99249.0,99248.0,4e-05]
[1734767479922,0.3738,99249.0,99248.0,0.00104]
[1734767497541,0.382736,99249.0,99248.0,0.00104]
[1734767498336,0.424199,99249.0,99248.0,0.00104]
[1734767498637,0.050401,99247.0,99224.0,0.23718144]
[1734767498844,0.3608,99226.0,99225.0,0.23718144]
[1734767499942,0.3608,99226.0,99224.0,0.050412]
[1734767501443,0.3638,99226.0,99224.0,0.050412]
[1734767501643,0.3728,99226.0,99215.0,0.36158144]
[1734767501843,0.3728,99226.0,99222.0,0.03588315]
[1734767502043,8e-05,99225.0,99222.0,0.03588315]
[1734767502546,8e-05,99225.0,99223.0,0.050413]
[1734767502943,8e-05,99225.0,99217.0,0.23718144]
[1734767503144,8e-05,99225.0,99222.0,0.03589631]
[1734767503350,0.008,99225.0,99222.0,0.03589631]
[1734767504750,0.01,99225.0,99222.0,0.03589631]
[1734767505244,0.011,99225.0,99222.0,0.03589631]
[1734767507341,0.06141,99225.0,99222.0,0.03589631]
[1734767508549,0.011,99225.0,99222.0,0.03589631]
[1734767509649,0.011,99225.0,99221.0,0.00151165]
[1734767509953,0.00894734,99224.0,99221.0,0.00151165]
[1734767510252,0.011,99225.0,99221.0,0.00151165]
[1734767511644,0.019,99225.0,99221.0,0.00151165]
[1734767511843,0.00894831,99224.0,99221.0,0.00151165]
[1734767512050,0.019,99225.0,99221.0,0.00151165]
[1734767512354,0.00894997,99224.0,99221.0,0.00151165]
[1734767512556,0.019,99225.0,99221.0,0.00151165]
[1734767513052,0.019,99225.0,99224.0,4e-05]
[1734767513455,0.02794948,99225.0,99224.0,4e-05]
[1734767513658,0.02594948,99225.0,99224.0,4e-05]
[1734767514555,0.02894737,99225.0,99224.0,4e-05]
[1734767514955,0.01194737,99225.0,99224.0,4e-05]
[1734767515150,0.02194737,99225.0,99224.0,0.05045]
[1734767515343,0.013,99225.0,99224.0,0.05045]
[1734767515547,0.004,99225.0,99224.0,0.05045]
[1734767515749,0.004,99225.0,99224.0,0.08635408]
[1734767515750,0.013,99225.0,99224.0,0.08635408]
[1734767516657,0.013,99225.0,99224.0,0.05045]
[1734767520364,0.013,99225.0,99224.0,4e-05]
[1734767526061,0.3738,99225.0,99224.0,4e-05]
[1734767526665,0.3738,99225.0,99224.0,0.15747685]
[1734767532454,0.46440602,99225.0,99224.0,0.20788585]
[1734767533365,0.10360602,99225.0,99224.0,0.20788585]
[1734767533566,0.46440602,99225.0,99224.0,0.20788585]
[1734767534066,0.1508713,99235.0,99224.0,0.20788585]
[1734767534067,0.12081198,99229.0,99228.0,0.050407]
[1734767534257,0.17973649,99241.0,99234.0,0.050404]
[1734767534564,0.17973649,99241.0,99240.0,0.050441]
[1734767534767,0.17973649,99241.0,99240.0,0.08637785]
[1734767535465,0.09055154,99243.0,99241.0,0.0504]
[1734767535665,0.09055154,99243.0,99242.0,0.37453685]
[1734767535964,0.3608,99263.0,99262.0,0.05039]
[1734767536156,0.18110309,99271.0,99266.0,0.050388]
[1734767536361,0.18110309,99271.0,99266.0,0.4471151]
[1734767536561,0.18110309,99271.0,99266.0,0.4471551]
[1734767537466,0.2509,99288.0,99266.0,0.4471551]
[1734767538370,0.001,99267.0,99266.0,0.45387199]
[1734767538575,0.001,99267.0,99266.0,0.41794489]
[1734767538972,0.001,99267.0,99266.0,0.41094489]
[1734767538973,0.013,99267.0,99266.0,0.41094489]
[1734767544666,0.013,99267.0,99266.0,0.05014489]
[1734767546872,0.013,99267.0,99266.0,0.00104]
[1734767549689,0.1372,99267.0,99266.0,0.00104]
[1734767562588,0.14603154,99267.0,99266.0,0.00104]
[1734767563284,0.50683154,99267.0,99266.0,0.00104]
[1734767563997,0.50685122,99267.0,99266.0,0.00104]
[1734767566283,0.51676081,99267.0,99266.0,0.00104]
[1734767567386,0.39256081,99267.0,99266.0,0.051429]
[1734767567583,0.3738,99267.0,99266.0,0.051429]
[1734767567783,0.38264459,99267.0,99266.0,0.051429]
[1734767569491,0.38263739,99267.0,99266.0,0.051429]
[1734767569995,0.38263853,99267.0,99266.0,0.051429]
[1734767572206,0.39261206,99267.0,99266.0,0.051429]
[1734767572702,0.39261171,99267.0,99266.0,0.051429]
[1734767575500,0.39262013,99267.0,99266.0,0.051429]
[1734767577594,0.38264695,99267.0,99266.0,0.051429]
[1734767577798,0.39263096,99267.0,99266.0,0.051429]
[1734767578601,0.39262994,99267.0,99266.0,0.051429]
[1734767579493,0.38265573,99267.0,99266.0,0.051429]
[1734767579692,0.39261166,99267.0,99266.0,0.051429]
[1734767581401,0.3738,99267.0,99266.0,0.051429]
[1734767581594,0.39259693,99267.0,99266.0,0.051429]
[1734767582304,0.3738,99267.0,99266.0,0.051429]
[1734767582486,0.39261031,99267.0,99266.0,0.051429]
[1734767582801,0.40255962,99267.0,99266.0,0.051429]
[1734767585796,0.40255627,99267.0,99266.0,0.051429]
[1734767587396,0.40255627,99267.0,99266.0,0.08742698]
[1734767588689,0.40256172,99267.0,99266.0,0.08742698]
[1734767589505,0.40256172,99267.0,99266.0,0.32383818]
[1734767590507,0.40256172,99267.0,99266.0,0.2878402]
[1734767591007,0.40256172,99267.0,99266.0,0.051429]